bitfinex-derivatives/quotes_BTCF0:USTF0_20251230
["timestamp","ask_amount","ask_price","bid_price","bid_amount"]
[1767095514210,0.0541269,87922.0,87908.0,0.0113899]
[1767095514408,0.02753017,87921.0,87908.0,0.0113899]
[1767095514603,0.02753017,87920.0,87908.0,0.0113899]
[1767095514908,0.0541269,87922.0,87908.0,0.0113899]
[1767095515109,0.02753021,87921.0,87908.0,0.0113899]
[1767095515306,0.02753021,87920.0,87908.0,0.0113899]
[1767095515506,0.0541269,87922.0,87908.0,0.0113899]
[1767095515507,0.02753021,87919.0,87908.0,0.0113899]
[1767095515707,0.0541269,87922.0,87908.0,0.0113899]
[1767095515907,0.02753691,87921.0,87908.0,0.0113899]
[1767095516210,0.02753691,87920.0,87908.0,0.0113899]
[1767095516414,0.02753691,87919.0,87908.0,0.0113899]
[1767095516708,0.0541269,87922.0,87908.0,0.0113899]
[1767095516909,0.02753601,87921.0,87908.0,0.0113899]
[1767095517116,0.02753601,87920.0,87908.0,0.0113899]
[1767095517306,0.02753601,87919.0,87908.0,0.0113899]
[1767095517508,0.0541269,87922.0,87908.0,0.0113899]
[1767095517806,0.02753591,87921.0,87908.0,0.0113899]
[1767095518006,0.02753591,87920.0,87908.0,0.0113899]
[1767095518206,0.02753591,87919.0,87908.0,0.0113899]
[1767095518403,0.0541269,87922.0,87908.0,0.0113899]
[1767095518604,0.02753567,87921.0,87908.0,0.0113899]
[1767095518904,0.02753567,87920.0,87908.0,0.0113899]
[1767095519103,0.02753567,87919.0,87908.0,0.0113899]
[1767095519313,0.0541269,87922.0,87908.0,0.0113899]
[1767095519511,0.02753594,87921.0,87908.0,0.0113899]
[1767095519713,0.02753594,87920.0,87908.0,0.0113899]
[1767095519913,0.02753594,87919.0,87908.0,0.0113899]
[1767095520215,0.08453495,87918.0,87887.0,0.0968]
[1767095520415,0.01139,87909.0,87890.0,0.0113923]
[1767095520608,0.0113902,87907.0,87888.0,0.11374623]
[1767095520911,0.02753495,87906.0,87888.0,0.0113926]
[1767095521114,0.02753495,87905.0,87888.0,0.12515888]
[1767095521317,0.02753495,87904.0,87888.0,0.12515888]
[1767095521512,0.00017066,87905.0,87888.0,0.12532954]
[1767095521712,0.02750909,87904.0,87888.0,0.12532954]
[1767095521917,0.00017066,87905.0,87888.0,0.11393694]
[1767095522514,0.057,87911.0,87896.0,0.0113915]
[1767095522716,0.02750063,87910.0,87896.0,0.0113915]
[1767095522914,0.02750063,87909.0,87896.0,0.0113915]
[1767095523104,0.02750063,87908.0,87896.0,0.0113915]
[1767095523301,0.05717066,87911.0,87896.0,0.0113915]
[1767095523513,0.03888516,87910.0,87895.0,0.057]
[1767095523712,0.02749536,87909.0,87895.0,0.057]
[1767095527616,0.00017066,87911.0,87896.0,0.0113916]
[1767095527817,0.02747786,87910.0,87896.0,0.0113916]
[1767095528014,0.00017066,87911.0,87896.0,0.0113916]
[1767095528220,0.02748536,87910.0,87896.0,0.0113916]
[1767095528411,0.01156036,87911.0,87892.0,0.011392]
[1767095528612,0.02748734,87910.0,87894.0,0.0113918]
[1767095528812,0.02748734,87909.0,87894.0,0.0113918]
[1767095529013,0.02748734,87908.0,87894.0,0.0113918]
[1767095529321,0.01156036,87911.0,87894.0,0.0113918]
[1767095529522,0.02748666,87910.0,87894.0,0.0113918]
[1767095529819,0.02748666,87909.0,87894.0,0.0113918]
[1767095530012,0.01156036,87911.0,87894.0,0.0113918]
[1767095530213,0.02748678,87910.0,87894.0,0.0113918]
[1767095530415,0.02748678,87909.0,87894.0,0.0113918]
[1767095530722,0.01156036,87911.0,87894.0,0.0113918]
[1767095530922,0.02748517,87910.0,87894.0,0.0113918]
[1767095531124,0.01156036,87911.0,87894.0,0.0113918]
[1767095531817,0.02802126,87910.0,87894.0,0.0113918]
[1767095532137,0.01156036,87911.0,87894.0,0.0113918]
[1767095532338,0.02802131,87910.0,87894.0,0.0113918]
[1767095532535,0.01156036,87911.0,87894.0,0.0113918]
[1767095532733,0.02802052,87910.0,87894.0,0.0113918]
[1767095532934,0.01156036,87911.0,87894.0,0.0113918]
[1767095533133,0.02802052,87910.0,87894.0,0.0113918]
[1767095533336,0.01156036,87911.0,87894.0,0.0113918]
[1767095533536,0.02802011,87910.0,87894.0,0.0113918]
[1767095533840,0.0113905,87905.0,87889.0,0.01137]
[1767095534032,0.0113908,87903.0,87889.0,0.01137]
[1767095535137,0.00017066,87911.0,87889.0,0.01137]
[1767095535344,0.02801806,87910.0,87889.0,0.01137]
[1767095535534,0.02801806,87909.0,87889.0,0.01137]
[1767095535730,0.0113905,87905.0,87889.0,0.01137]
[1767095536844,0.057,87905.0,87889.0,0.01137]
[1767095537044,0.0113906,87904.0,87889.0,0.01137]
[1767095537450,0.0968,87908.0,87889.0,0.01137]
[1767095537744,0.02801887,87907.0,87892.0,0.011392]
[1767095538046,0.0968,87908.0,87892.0,0.011392]
[1767095538247,0.02801875,87907.0,87892.0,0.011392]
[1767095538546,0.0968,87908.0,87892.0,0.011392]
[1767095538742,0.02801973,87907.0,87892.0,0.011392]
[1767095538934,0.00017066,87911.0,87894.0,0.0113918]
[1767095539136,0.057,87908.0,87894.0,0.0113918]
[1767095540348,0.02802106,87907.0,87894.0,0.0113918]
[1767095540548,0.057,87908.0,87894.0,0.0113918]
[1767095540748,0.02802235,87907.0,87894.0,0.0113918]
[1767095541051,0.057,87908.0,87894.0,0.0113918]
[1767095541243,0.02802214,87907.0,87894.0,0.0113918]
[1767095541442,0.057,87908.0,87894.0,0.0113918]
[1767095541644,0.02802431,87907.0,87894.0,0.0113918]
[1767095541845,0.057,87908.0,87894.0,0.0113918]
[1767095542043,0.02802434,87907.0,87894.0,0.0113918]
[1767095542246,0.057,87908.0,87894.0,0.0113918]
[1767095542549,0.02802674,87907.0,87894.0,0.0113918]
[1767095542740,0.057,87908.0,87894.0,0.0113918]
[1767095542939,0.02802678,87907.0,87894.0,0.0113918]
[1767095543248,0.057,87908.0,87894.0,0.0113918]
[1767095543434,0.02802998,87907.0,87894.0,0.0113918]
[1767095543636,0.057,87908.0,87894.0,0.0113918]
[1767095543834,0.02802995,87907.0,87894.0,0.0113918]
[1767095544038,0.02803012,87906.0,87894.0,0.0113918]
[1767095544235,0.057,87908.0,87894.0,0.0113918]
[1767095544438,0.02803075,87907.0,87894.0,0.0113918]
[1767095544652,0.02803075,87906.0,87894.0,0.0113918]
[1767095544843,0.057,87908.0,87894.0,0.0113918]
[1767095545042,0.02803363,87907.0,87888.0,0.00017066]
[1767095545246,0.0113909,87902.0,87888.0,0.00017066]
[1767095547951,0.0113909,87902.0,87889.0,0.01137]
[1767095549354,0.0280713,87901.0,87889.0,0.01137]
[1767095549553,0.0280713,87900.0,87889.0,0.01137]
[1767095549755,0.0113909,87902.0,87889.0,0.01137]
[1767095549954,0.02807131,87901.0,87889.0,0.01137]
[1767095550151,0.03946251,87900.0,87889.0,0.01137]
[1767095550356,0.02806939,87899.0,87889.0,0.01137]
[1767095550550,0.03946069,87898.0,87889.0,0.01137]
[1767095550748,0.02806939,87897.0,87889.0,0.01137]
[1767095551050,0.02806939,87897.0,87852.0,0.10258451]
[1767095551358,0.011394,87878.0,87867.0,0.0968]
[1767095551553,0.0113937,87881.0,87863.0,0.0968]
[1767095551958,0.0113923,87891.0,87870.0,0.0113949]
[1767095552155,0.0280503,87890.0,87864.0,0.11380189]
[1767095552457,0.0113916,87896.0,87878.0,0.0113938]
[1767095552658,0.0280365,87895.0,87878.0,0.0113438]
[1767095552956,0.0280365,87894.0,87878.0,0.0113438]
[1767095553157,0.05704,87896.0,87878.0,0.0113438]
[1767095553158,0.0280365,87893.0,87878.0,0.0113438]
[1767095553361,0.0280365,87892.0,87877.0,0.01156466]
[1767095553558,0.01156246,87895.0,87877.0,0.01156466]
[1767095553856,0.02803174,87894.0,87877.0,0.01156466]
[1767095554055,0.02803174,87893.0,87877.0,0.01156466]
[1767095554249,0.02803174,87892.0,87877.0,0.01156466]
[1767095554451,0.01156246,87895.0,87877.0,0.01156466]
[1767095554643,0.02802708,87894.0,87879.0,0.0113937]
[1767095554960,0.02802708,87893.0,87879.0,0.0113937]
[1767095555260,0.00017066,87895.0,87877.0,0.00017066]
[1767095555261,0.0113925,87889.0,87877.0,0.00017066]
[1767095555457,0.0113928,87887.0,87877.0,0.00017066]
[1767095555762,0.02802196,87886.0,87871.0,0.01138]
[1767095556058,0.02802196,87885.0,87871.0,0.01138]
[1767095556356,0.0113928,87887.0,87871.0,0.01138]
[1767095556558,0.02801309,87886.0,87871.0,0.01138]
[1767095556757,0.0113928,87887.0,87871.0,0.01138]
[1767095556959,0.02801169,87886.0,87871.0,0.01138]
[1767095557258,0.0113928,87887.0,87871.0,0.01138]
[1767095557458,0.02800596,87886.0,87871.0,0.01138]
[1767095557661,0.18184422,87885.0,87856.0,0.0968]
[1767095557852,0.12480422,87884.0,87856.0,0.0968]
[1767095558154,0.02800422,87883.0,87856.0,0.0968]
[1767095558373,0.0113943,87876.0,87856.0,0.1081967]
[1767095558657,0.00017066,87875.0,87856.0,0.1081967]
[1767095558847,0.00017066,87875.0,87858.0,0.0113964]
[1767095559254,0.0113945,87874.0,87856.0,0.0968]
[1767095559551,0.0113945,87874.0,87856.0,0.1081967]
[1767095562043,0.00017066,87875.0,87856.0,0.0968]
[1767095562044,0.0113949,87871.0,87856.0,0.0968]
[1767095563460,0.00017066,87875.0,87856.0,0.0968]
[1767095563759,0.0807,87883.0,87867.0,0.0113953]
[1767095563760,0.09684,87881.0,87867.0,0.0113953]
[1767095564059,0.09684,87881.0,87864.0,0.0113957]
[1767095564257,0.0113939,87879.0,87860.0,0.0113962]
[1767095564451,0.0113939,87879.0,87860.0,0.0684362]
[1767095564647,0.0113941,87877.0,87861.0,0.00017066]
[1767095565955,0.0113941,87877.0,87861.0,0.01156676]
[1767095568867,0.0113944,87875.0,87861.0,0.00017066]
[1767095569567,0.01156466,87878.0,87861.0,0.00017066]
[1767095570070,0.00017066,87878.0,87861.0,0.00017066]
[1767095570269,0.0113949,87871.0,87861.0,0.00017066]
[1767095571467,0.12352353,87871.0,87861.0,0.00017066]
[1767095571668,0.0113949,87871.0,87861.0,0.00017066]
[1767095571968,0.12352353,87871.0,87861.0,0.00017066]
[1767095573559,0.05704,87876.0,87861.0,6e-08]
[1767095573763,0.05704,87876.0,87852.0,9.051e-05]
[1767095573764,0.0113956,87866.0,87852.0,9.051e-05]
[1767095574062,0.0280595,87875.0,87852.0,9.051e-05]
[1767095574063,0.0113959,87864.0,87852.0,9.051e-05]
[1767095574671,0.0113954,87867.0,87852.0,9.051e-05]
[1767095575572,0.22036363,87870.0,87852.0,9.051e-05]
[1767095575874,0.0113953,87868.0,87852.0,9.051e-05]
[1767095576074,0.09684,87870.0,87852.0,9.051e-05]
[1767095576269,0.02806522,87869.0,87855.0,0.0113969]
[1767095576573,0.05708,87872.0,87855.0,0.0113969]
[1767095576775,0.02806891,87871.0,87855.0,0.0113969]
[1767095576973,0.02806891,87870.0,87857.0,0.0113966]
[1767095577176,0.05708,87872.0,87857.0,0.0113966]
[1767095577372,0.02807478,87871.0,87857.0,0.0113966]
[1767095577567,0.02807478,87870.0,87859.0,0.0113963]
[1767095577768,0.13778,87875.0,87860.0,0.11212863]
[1767095578079,0.02807523,87874.0,87860.0,0.11212863]
[1767095578273,0.02807523,87873.0,87860.0,0.11212863]
[1767095578572,0.02807523,87872.0,87860.0,0.11212863]
[1767095578876,0.02807523,87871.0,87860.0,0.11212863]
[1767095579076,0.13778,87875.0,87859.0,0.0113963]
[1767095579273,0.02808305,87874.0,87860.0,0.11212863]
[1767095579579,0.02808305,87873.0,87860.0,0.11212863]
[1767095579780,0.02808305,87872.0,87861.0,0.0113961]
[1767095580077,0.0807,87875.0,87861.0,0.0113961]
[1767095580280,0.02809321,87874.0,87865.0,0.0113955]
[1767095580470,0.0807,87875.0,87865.0,0.0113955]
[1767095580669,0.0807,87875.0,87869.0,0.011395]
[1767095580888,0.00017066,87878.0,87869.0,0.011395]
[1767095581374,0.00017066,87878.0,87866.0,0.0113955]
[1767095581878,0.00017066,87878.0,87865.0,0.0113955]
[1767095585474,0.00017066,87878.0,87852.0,9.051e-05]
[1767095585768,0.00017066,87878.0,87858.0,0.0113964]
[1767095586485,0.0113945,87874.0,87858.0,0.0113964]
[1767095587988,0.11212863,87870.0,87855.0,0.0113969]
[1767095588400,0.11212863,87870.0,87853.0,0.15392]
[1767095588688,0.0113956,87866.0,87853.0,0.15392]
[1767095588988,0.0113956,87866.0,87854.0,0.01137]
[1767095591584,0.0113952,87869.0,87854.0,0.01137]
[1767095592282,0.0684744,87875.0,87857.0,0.0113966]
[1767095592484,0.0113946,87873.0,87857.0,0.0113966]
[1767095592793,0.02769037,87872.0,87859.0,0.0113964]
[1767095592986,0.02769037,87871.0,87860.0,0.11212863]
[1767095593193,0.05708,87875.0,87859.0,0.0113964]
[1767095593194,0.02769037,87870.0,87859.0,0.0113964]
[1767095593494,0.08477037,87869.0,87859.0,0.0113964]
[1767095593695,0.02769037,87868.0,87856.0,0.0113967]
[1767095593993,0.05708,87869.0,87856.0,0.0113967]
[1767095594192,0.02769026,87868.0,87856.0,0.0113967]
[1767095594395,0.02769026,87867.0,87858.0,0.0113965]
[1767095594590,0.0113943,87875.0,87858.0,0.0113965]
[1767095594791,0.02769207,87874.0,87858.0,0.0113965]
[1767095594994,0.02769207,87873.0,87858.0,0.0113965]
[1767095595193,0.02769207,87872.0,87858.0,0.0113964]
[1767095595393,0.02769207,87871.0,87858.0,0.0113964]
[1767095595589,0.02769207,87870.0,87858.0,0.0113964]
[1767095595791,0.02769207,87869.0,87858.0,0.0113964]
[1767095595987,0.05708,87872.0,87860.0,0.0113963]
[1767095596385,0.09684,87874.0,87862.0,0.12352453]
[1767095596990,0.09684,87874.0,87862.0,0.0113959]
[1767095598194,0.0113948,87871.0,87854.0,0.01137]
[1767095598899,0.0113948,87871.0,87854.0,0.022767]
[1767095599299,0.1082344,87874.0,87854.0,0.022767]
[1767095601202,0.1082344,87874.0,87856.0,0.0113967]
[1767095601701,0.05708,87876.0,87862.0,0.0113959]
[1767095602301,0.00017066,87878.0,87862.0,0.0113959]
[1767095602599,0.05708,87875.0,87862.0,0.0113959]
[1767095606598,0.05708,87875.0,87860.0,0.11212863]
[1767095607101,0.0684744,87875.0,87860.0,0.11212863]
[1767095607501,0.0684744,87875.0,87856.0,0.0113967]
[1767095607700,0.0684744,87875.0,87860.0,0.11212863]
[1767095608101,0.0113947,87873.0,87854.0,0.01137]
[1767095608298,0.02758025,87872.0,87854.0,0.01137]
[1767095608503,0.02758025,87871.0,87854.0,0.01137]
[1767095608694,0.02758029,87870.0,87854.0,0.01137]
[1767095608898,0.02758029,87869.0,87853.0,0.05708]
[1767095609100,0.02758029,87868.0,87853.0,0.05708]
[1767095609399,0.02758029,87867.0,87855.0,0.0113969]
[1767095609598,0.02758029,87866.0,87855.0,0.0113969]
[1767095609805,0.05708,87875.0,87855.0,0.0113969]
[1767095609806,0.0113949,87871.0,87855.0,0.0113969]
[1767095610104,0.02757921,87870.0,87855.0,0.0113969]
[1767095610304,0.02757921,87869.0,87855.0,0.0113969]
[1767095610602,0.02757921,87868.0,87855.0,0.0113969]
[1767095610792,0.02757921,87867.0,87855.0,0.0113969]
[1767095610996,0.02757921,87866.0,87855.0,0.0113969]
[1767095611298,0.02757921,87865.0,87855.0,0.0113969]
[1767095611604,0.02757921,87864.0,87855.0,0.0113969]
[1767095611806,0.02757921,87863.0,87855.0,0.0113969]
[1767095611997,0.0113948,87872.0,87855.0,0.0113969]
[1767095612299,0.0275791,87871.0,87855.0,0.0113969]
[1767095612602,0.0275791,87870.0,87855.0,0.0113969]
[1767095612798,0.0275791,87869.0,87855.0,0.0113969]
[1767095613003,0.0275791,87868.0,87855.0,0.0113969]
[1767095613205,0.0275791,87867.0,87856.0,0.01137]
[1767095613404,0.0275791,87866.0,87856.0,0.01137]
[1767095613604,0.0275791,87865.0,87856.0,0.01137]
[1767095613804,0.0275791,87864.0,87856.0,0.01137]
[1767095613994,0.0275791,87863.0,87856.0,0.01137]
[1767095614199,0.0113948,87872.0,87856.0,0.01137]
[1767095614507,0.011395,87870.0,87856.0,0.01137]
[1767095614693,0.02757856,87869.0,87856.0,0.01137]
[1767095615703,0.02757856,87868.0,87856.0,0.01137]
[1767095615903,0.02757856,87867.0,87856.0,0.01137]
[1767095616103,0.02757856,87866.0,87856.0,0.01137]
[1767095616304,0.02757856,87865.0,87856.0,0.01137]
[1767095616507,0.02757856,87864.0,87856.0,0.01137]
[1767095616707,0.02757856,87863.0,87856.0,0.01137]
[1767095616907,0.02757856,87862.0,87856.0,0.01137]
[1767095617211,0.0113946,87873.0,87856.0,0.01137]
[1767095617409,0.02758321,87872.0,87856.0,0.01137]
[1767095617613,0.02758321,87871.0,87856.0,0.01137]
[1767095617911,0.02758321,87870.0,87860.0,0.15416882]
[1767095618110,0.02758321,87869.0,87860.0,0.15416882]
[1767095618311,0.02758321,87868.0,87860.0,0.15416882]
[1767095618498,0.02758321,87867.0,87860.0,0.15416882]
[1767095618701,0.02758321,87866.0,87860.0,0.15416882]
[1767095618903,0.02758321,87865.0,87860.0,0.15416882]
[1767095619110,0.02758321,87864.0,87860.0,0.15416882]
[1767095619312,0.0113946,87873.0,87858.0,0.0113965]
[1767095619614,0.02758494,87872.0,87858.0,0.0113965]
[1767095619815,0.02758494,87871.0,87860.0,0.15416882]
[1767095620108,0.02758494,87870.0,87856.0,0.01137]
[1767095620306,0.02758494,87869.0,87856.0,0.01137]
[1767095620501,0.02758494,87868.0,87856.0,0.01137]
[1767095620907,0.02758494,87867.0,87856.0,0.01137]
[1767095621110,0.02758494,87866.0,87856.0,0.01137]
[1767095621315,0.0113947,87872.0,87856.0,0.01137]
[1767095621510,0.02758927,87871.0,87856.0,0.01137]
[1767095621812,0.02758927,87870.0,87856.0,0.01137]
[1767095622002,0.02758927,87869.0,87856.0,0.01137]
[1767095622203,0.02758927,87868.0,87856.0,0.01137]
[1767095622405,0.02758927,87867.0,87856.0,0.01137]
[1767095622611,0.0113947,87872.0,87856.0,0.01137]
[1767095622810,0.15416882,87870.0,87856.0,0.01137]
[1767095623011,0.02730247,87869.0,87856.0,0.01137]
[1767095623219,0.02730247,87868.0,87856.0,0.01137]
[1767095623412,0.02730247,87867.0,87856.0,0.01137]
[1767095623711,0.05708,87875.0,87856.0,0.01137]
[1767095623920,0.0113955,87867.0,87856.0,0.01137]
[1767095624111,0.02730218,87866.0,87856.0,0.01137]
[1767095624317,0.011395,87870.0,87856.0,0.01137]
[1767095624516,0.02730134,87869.0,87856.0,0.01137]
[1767095624719,0.02730134,87868.0,87856.0,0.01137]
[1767095624913,0.02730134,87867.0,87856.0,0.01137]
[1767095625211,0.02730134,87866.0,87856.0,0.01137]
[1767095625412,0.011395,87870.0,87856.0,0.01137]
[1767095625710,0.02730081,87869.0,87856.0,0.01137]
[1767095625920,0.02730081,87868.0,87856.0,0.01137]
[1767095626113,0.02730081,87867.0,87856.0,0.01137]
[1767095626314,0.02730081,87866.0,87856.0,0.01137]
[1767095626518,0.02730081,87865.0,87856.0,0.01137]
[1767095626817,0.011395,87870.0,87856.0,0.01137]
[1767095627118,0.02730113,87869.0,87853.0,0.05708]
[1767095627320,0.02730113,87868.0,87853.0,0.05708]
[1767095627621,0.02730113,87867.0,87853.0,0.05708]
[1767095627918,0.02730113,87866.0,87853.0,0.05708]
[1767095628219,0.011395,87870.0,87853.0,0.05708]
[1767095628518,0.02730225,87869.0,87853.0,0.05708]
[1767095628711,0.02730225,87868.0,87853.0,0.05708]
[1767095628911,0.02730225,87867.0,87853.0,0.05708]
[1767095629112,0.02730225,87866.0,87853.0,0.05708]
[1767095629410,0.011395,87870.0,87853.0,0.05708]
[1767095629610,0.02730203,87869.0,87853.0,0.05708]
[1767095629822,0.02730203,87868.0,87853.0,0.05708]
[1767095630117,0.02730203,87867.0,87853.0,0.05708]
[1767095630308,0.02730203,87866.0,87853.0,0.05708]
[1767095630508,0.0113953,87868.0,87853.0,0.05708]
[1767095630719,0.02730134,87867.0,87853.0,0.05708]
[1767095631019,0.02730134,87866.0,87853.0,0.05708]
[1767095631224,0.02730134,87865.0,87854.0,0.01137]
[1767095631412,0.0113953,87868.0,87854.0,0.01137]
[1767095631713,0.02729927,87867.0,87854.0,0.01137]
[1767095632019,0.02729927,87866.0,87854.0,0.01137]
[1767095632217,0.02729927,87865.0,87854.0,0.01137]
[1767095632414,0.0113953,87868.0,87854.0,0.01137]
[1767095632615,0.02729437,87867.0,87854.0,0.01137]
[1767095632817,0.02729437,87866.0,87854.0,0.01137]
[1767095633026,0.02729437,87865.0,87854.0,0.01137]
[1767095633224,0.0113953,87868.0,87854.0,0.01137]
[1767095633436,0.02729297,87867.0,87854.0,0.01137]
[1767095633637,0.02729297,87866.0,87854.0,0.01137]
[1767095633838,0.0113953,87868.0,87854.0,0.01137]
[1767095633839,0.02729297,87865.0,87854.0,0.01137]
[1767095634042,0.0113953,87868.0,87854.0,0.01137]
[1767095634240,0.02729297,87867.0,87854.0,0.01137]
[1767095634442,0.02729297,87866.0,87854.0,0.01137]
[1767095634740,0.02729297,87865.0,87854.0,0.01137]
[1767095634942,0.02729297,87864.0,87854.0,0.01137]
[1767095635143,0.0113955,87866.0,87854.0,0.01137]
[1767095635537,0.02729581,87865.0,87854.0,0.01137]
[1767095635843,0.011396,87863.0,87854.0,0.01137]
[1767095638049,0.0113962,87861.0,87854.0,0.01137]
[1767095638637,0.0113965,87859.0,87854.0,0.01137]
[1767095639346,0.05704,87864.0,87843.0,0.05704]
[1767095639646,0.08433183,87863.0,87843.0,0.05704]
[1767095639841,0.02729183,87862.0,87843.0,0.05704]
[1767095640241,0.0113962,87861.0,87843.0,0.0684384]
[1767095640439,9.051e-05,87860.0,87845.0,0.0113982]
[1767095641442,9.051e-05,87860.0,87848.0,0.01367447]
[1767095641632,0.09684,87872.0,87848.0,0.01367447]
[1767095641633,0.0113954,87867.0,87848.0,0.00227667]
[1767095641836,0.09312775,87890.0,87848.0,0.00227667]
[1767095641837,0.09684,87872.0,87857.0,0.0113966]
[1767095642547,0.05708,87877.0,87859.0,0.0113963]
[1767095642746,0.05708,87877.0,87856.0,0.0113968]
[1767095643046,0.05708,87877.0,87855.0,0.05704]
[1767095643244,0.0113949,87871.0,87855.0,0.05704]
[1767095644545,0.0113952,87869.0,87855.0,0.05704]
[1767095645245,0.05708,87877.0,87855.0,0.05704]
[1767095645246,0.0113954,87867.0,87855.0,0.05704]
[1767095647147,0.0113957,87865.0,87855.0,0.05704]
[1767095648648,0.0113957,87865.0,87849.0,0.09684]
[1767095649251,0.15392,87867.0,87849.0,0.09684]
[1767095649252,0.0113959,87863.0,87849.0,0.09684]
[1767095649444,0.0113962,87861.0,87849.0,0.09684]
[1767095650647,0.0113965,87859.0,87849.0,0.09684]
[1767095651054,0.0113961,87862.0,87849.0,0.09684]
[1767095652351,0.0113961,87862.0,87848.0,0.00227667]
[1767095652655,0.15392,87867.0,87848.0,0.00227667]
[1767095653152,0.0113965,87859.0,87848.0,0.00227667]
[1767095653350,0.15392,87867.0,87848.0,0.00227667]
[1767095653351,0.0113967,87857.0,87848.0,0.00227667]
[1767095655457,0.02707026,87856.0,87839.0,0.09684]
[1767095655642,0.02707026,87855.0,87839.0,0.09684]
[1767095656256,0.0113977,87850.0,87837.0,0.05708]
[1767095656659,0.0113973,87853.0,87837.0,0.05708]
[1767095656846,0.011398,87847.0,87825.0,0.04463701]
[1767095657155,0.011398,87847.0,87826.0,0.11383428]
[1767095657351,0.011398,87847.0,87831.0,0.0113999]
[1767095657653,0.011398,87847.0,87827.0,0.0114004]
[1767095657849,0.00017066,87856.0,87825.0,0.05708]
[1767095658159,0.0113989,87841.0,87825.0,0.05708]
[1767095658958,0.0113984,87844.0,87825.0,0.05708]
[1767095659157,0.0113984,87844.0,87826.0,0.0114006]
[1767095659650,0.09684,87845.0,87828.0,0.0114003]
[1767095659850,0.09684,87845.0,87829.0,0.0114002]
[1767095660250,0.0113972,87853.0,87834.0,0.0113996]
[1767095660449,0.18095044,87852.0,87834.0,0.0113996]
[1767095660649,0.02703044,87851.0,87834.0,0.0113996]
[1767095660850,0.02703044,87850.0,87834.0,0.0113996]
[1767095661050,0.02703044,87849.0,87834.0,0.0113996]
[1767095661258,0.15392,87852.0,87834.0,0.0113996]
[1767095661259,0.02703044,87848.0,87834.0,0.0113996]
[1767095661559,0.15392,87852.0,87834.0,0.0113996]
[1767095661752,0.03842503,87851.0,87834.0,0.0113996]
[1767095662058,0.02702753,87850.0,87834.0,0.0113996]
[1767095662258,0.02702753,87849.0,87834.0,0.0113996]
[1767095662553,0.02702753,87848.0,87834.0,0.0113996]
[1767095662758,0.15392,87852.0,87834.0,0.0113996]
[1767095662952,0.02702472,87851.0,87834.0,0.0113996]
[1767095663147,0.02702472,87850.0,87834.0,0.0113996]
[1767095663360,0.02702472,87849.0,87834.0,0.0113996]
[1767095663560,0.02702472,87848.0,87834.0,0.0113996]
[1767095663761,0.15392,87852.0,87834.0,0.0113996]
[1767095663961,0.02703285,87851.0,87834.0,0.0113996]
[1767095664164,0.02703285,87850.0,87834.0,0.0113996]
[1767095664355,0.02703285,87849.0,87831.0,0.0114]
[1767095664560,0.03843075,87848.0,87831.0,0.0114]
[1767095664753,0.0113979,87848.0,87831.0,0.0114]
[1767095665649,0.0113979,87848.0,87827.0,0.0114004]
[1767095665853,0.0113979,87848.0,87825.0,0.05708]
[1767095666049,0.02703024,87847.0,87825.0,0.05708]
[1767095666250,0.0113979,87848.0,87825.0,0.05708]
[1767095667063,0.0113979,87848.0,87829.0,0.0114002]
[1767095667269,0.0113974,87851.0,87832.0,0.0113998]
[1767095667456,0.02702848,87850.0,87832.0,0.0113998]
[1767095667655,0.02702848,87849.0,87832.0,0.0113998]
[1767095667956,0.02702848,87848.0,87832.0,0.0113998]
[1767095668261,0.03842511,87847.0,87829.0,0.0114003]
[1767095668567,0.02702711,87846.0,87829.0,0.0114003]
[1767095671062,0.011398,87847.0,87829.0,0.0114003]
[1767095671261,0.15417406,87850.0,87818.0,0.00227745]
[1767095671469,0.011399,87839.0,87822.0,0.0114012]
[1767095671660,0.0113996,87835.0,87819.0,0.0114015]
[1767095671858,0.05725076,87836.0,87819.0,0.0114015]
[1767095672269,0.05725076,87836.0,87821.0,0.0114013]
[1767095672959,0.09688,87842.0,87818.0,0.00227745]
[1767095673159,0.0270194,87841.0,87827.0,0.0114005]
[1767095673357,0.15396,87842.0,87818.0,0.00227745]
[1767095673358,0.05708,87842.0,87829.0,0.0114002]
[1767095673658,0.05708,87843.0,87832.0,0.0113998]
[1767095673857,0.0684784,87844.0,87829.0,0.0114002]
[1767095674673,0.0113987,87842.0,87828.0,0.00017076]
[1767095674860,0.0113987,87842.0,87828.0,0.01157116]
[1767095675053,0.0113985,87843.0,87828.0,0.01157116]
[1767095675260,0.0113988,87841.0,87828.0,0.00017076]
[1767095675459,0.0113991,87838.0,87828.0,0.00017076]
[1767095675667,0.0113988,87841.0,87828.0,0.00017076]
[1767095676166,0.011399,87839.0,87828.0,0.00017076]
[1767095677070,0.0113987,87842.0,87828.0,0.00017076]
[1767095677369,0.011399,87839.0,87828.0,0.00017076]
[1767095678571,0.0113987,87842.0,87828.0,0.00017076]
[1767095678969,0.0113989,87840.0,87828.0,0.00017076]
[1767095679373,0.0113986,87843.0,87828.0,0.00017076]
[1767095679578,0.02703629,87842.0,87828.0,0.00017076]
[1767095679765,0.0113988,87841.0,87828.0,0.00017076]
[1767095680363,0.05708,87844.0,87828.0,0.00017076]
[1767095680572,0.02703952,87843.0,87828.0,0.00017076]
[1767095680765,0.02703952,87842.0,87828.0,0.00017076]
[1767095681076,0.02703952,87841.0,87828.0,0.00017076]
[1767095681275,0.02703952,87840.0,87828.0,0.00017076]
[1767095681476,0.02703952,87839.0,87828.0,0.00017076]
[1767095681676,0.02703952,87838.0,87828.0,0.00017076]
[1767095681970,0.02703952,87837.0,87828.0,0.00017076]
[1767095682188,0.0113989,87840.0,87828.0,0.00017076]
[1767095682478,0.02714694,87839.0,87828.0,0.00017076]
[1767095682670,0.02714694,87838.0,87828.0,0.00017076]
[1767095682867,0.02714694,87837.0,87828.0,0.00017076]
[1767095683065,0.0113989,87840.0,87828.0,0.00017076]
[1767095683375,0.02714716,87839.0,87828.0,0.00017076]
[1767095683576,0.02714716,87838.0,87828.0,0.00017076]
[1767095683768,0.02714716,87837.0,87828.0,0.00017076]
[1767095683967,0.02714716,87836.0,87828.0,0.00017076]
[1767095684167,0.0113989,87840.0,87828.0,0.00017076]
[1767095684369,0.0113992,87838.0,87828.0,0.00017076]
[1767095684571,0.02715453,87837.0,87828.0,0.00017076]
[1767095684772,0.02715453,87836.0,87828.0,0.00017076]
[1767095684969,0.02715453,87835.0,87828.0,0.00017076]
[1767095685170,0.0113992,87838.0,87828.0,0.00017076]
[1767095685370,0.02715255,87837.0,87828.0,0.00017076]
[1767095685570,0.02715255,87836.0,87828.0,0.00017076]
[1767095685770,0.02715255,87835.0,87828.0,0.00017076]
[1767095685971,0.0113992,87838.0,87828.0,0.00017076]
[1767095686273,0.0113995,87836.0,87818.0,0.01367915]
[1767095686469,0.0113996,87834.0,87818.0,0.00227745]